bitfinex/quotes_SOLUSD_20250118
["timestamp","ask_amount","ask_price","bid_price","bid_amount"]
[1737180929837,7.50001,233.6,233.56,41.96010359]
[1737180930035,7.50001,233.6,233.59,41.96010359]
[1737180930830,11.78091,233.6,233.55,41.96010359]
[1737180931033,0.80310507,233.59,233.51,41.96010359]
[1737180931266,0.80310507,233.59,233.57,41.96010359]
[1737180931454,7.50001,233.6,233.57,41.96010359]
[1737180931649,7.50001,233.6,233.59,41.96010359]
[1737180931849,7.50001,233.6,233.41,0.64229093]
[1737180932157,7.50001,233.6,233.5,41.96010359]
[1737180932672,41.96010359,233.59,233.46,41.96010359]
[1737180932837,7.50001,233.6,233.46,41.96010359]
[1737180933040,7.50001,233.6,233.49,41.96010359]
[1737180933339,7.50001,233.6,233.51,41.96010359]
[1737180933966,7.50001,233.6,233.49,41.96010359]
[1737180933967,49.46011359,233.6,233.49,41.96010359]
[1737180934347,49.46011359,233.6,233.52,20.063]
[1737180934553,49.49011359,233.6,233.52,20.063]
[1737180934740,7.53001,233.6,233.55,41.53940947]
[1737180935558,20.11069245,233.62,233.58,20.0]
[1737180935757,78.19868,233.76,233.61,124.61822841]
[1737180935955,41.53940947,234.12,233.75,124.61822841]
[1737180936156,41.53940947,233.99,233.86,41.53940947]
[1737180936369,15.441,234.09,233.58,0.64142765]
[1737180936552,213.85374079,234.07,233.46,13.52179976]
[1737180936753,213.85374079,234.07,233.53,0.7830135]
[1737180936754,0.80801194,234.06,233.53,0.7830135]
[1737180936967,213.85374079,234.07,233.54,0.64194407]
[1737180937266,12.88,234.06,233.55,0.78294644]
[1737180937437,41.53940947,233.83,233.69,41.53940947]
[1737180937653,41.53940947,233.83,233.55,0.78294644]
[1737180937654,41.53940947,233.77,233.64,41.53940947]
[1737180938060,41.53940947,233.75,233.62,41.53940947]
[1737180938361,4.2771,233.8,233.52,0.063]
[1737180938663,4.2758,233.87,233.52,0.063]
[1737180939258,17.1558,233.87,233.52,0.063]
[1737180939461,41.53940947,233.74,233.62,41.53940947]
[1737180939658,2.887,233.81,233.67,41.53940947]
[1737180939861,41.53940947,233.88,233.73,41.53940947]
[1737180940155,4.597616,234.06,233.87,41.53940947]
[1737180940359,4.597616,234.06,233.98,41.53940947]
[1737180940360,2.887,234.06,233.98,41.53940947]
[1737180940535,78.19868,234.1,233.87,42.18050391]
[1737180940737,78.19868,234.1,234.09,41.53940947]
[1737180940951,2.887,234.35,234.09,83.07881894]
[1737180941155,44.42640947,234.35,234.12,83.07881894]
[1737180941461,4.2662,234.4,234.16,41.53940947]
[1737180941665,41.53940947,234.32,234.21,41.53940947]
[1737180941855,0.02114936,234.48,234.12,0.78104024]
[1737180942042,41.53940947,234.32,234.2,41.53940947]
[1737180942243,41.53940947,234.22,233.99,0.64045218]
[1737180942444,41.53940947,234.22,234.1,41.53940947]
[1737180942639,0.02114936,234.48,234.14,41.53940947]
[1737180942953,9.21440619,234.26,234.24,41.53940947]
[1737180943157,9.21440619,234.26,234.22,41.53940947]
[1737180943355,9.21440619,234.26,234.2,41.53940947]
[1737180943660,9.21440619,234.26,234.12,41.53940947]
[1737180943866,41.53940947,234.25,234.12,41.53940947]
[1737180944045,41.53940947,234.25,234.15,20.0]
[1737180944246,9.21440619,234.26,234.14,41.53940947]
[1737180944649,9.21440619,234.26,234.19,20.0]
[1737180944845,9.21440619,234.26,234.2,41.53940947]
[1737180945145,9.21440619,234.26,234.22,41.53940947]
[1737180945353,9.21440619,234.26,234.24,41.53940947]
[1737180945872,50.75381566,234.26,234.12,41.53940947]
[1737180946063,50.75381566,234.26,234.06,41.53940947]
[1737180946064,41.53940947,234.19,234.06,41.53940947]
[1737180946373,41.03940947,234.2,234.08,41.53940947]
[1737180946674,9.21440619,234.26,234.09,1.42159557]
[1737180946981,9.21440619,234.26,234.1,0.78110697]
[1737180947180,9.21440619,234.26,234.05,0.64056396]
[1737180947344,9.24440619,234.26,234.06,0.78124046]
[1737180947550,41.53940947,234.2,234.08,41.53940947]
[1737180947770,9.24440619,234.26,234.1,41.53940947]
[1737180947771,41.53940947,234.22,234.1,41.53940947]
[1737180947970,41.53940947,234.22,234.1,54.41940947]
[1737180948177,41.53940947,234.22,234.13,20.0]
[1737180948357,50.78381566,234.26,234.17,20.0]
[1737180948555,41.53940947,234.24,234.17,20.0]
[1737180948963,41.53940947,234.22,234.12,41.53940947]
[1737180949171,41.53940947,234.19,234.07,41.53940947]
[1737180949485,41.53940947,234.17,234.07,41.53940947]
[1737180949845,41.53940947,234.21,234.09,41.53940947]
[1737180950065,41.53940947,234.19,234.12,20.0]
[1737180950475,41.53940947,234.17,234.05,41.53940947]
[1737180950674,41.53940947,234.09,233.94,0.64058107]
[1737180950878,41.53940947,234.0,233.87,41.53940947]
[1737180951178,41.53940947,233.98,233.87,41.53940947]
[1737180951360,41.53940947,234.0,233.87,41.53940947]
[1737180951542,41.53940947,234.05,233.88,0.64112342]
[1737180951747,41.53940947,234.01,233.91,41.53940947]
[1737180951947,2.887,234.23,233.97,41.53940947]
[1737180951948,41.53940947,234.1,233.97,41.53940947]
[1737180952353,41.53940947,234.12,234.01,41.53940947]
[1737180952552,41.53940947,234.14,234.04,20.0]
[1737180952958,41.53940947,234.18,234.08,41.53940947]
[1737180953159,41.53940947,234.16,234.06,41.53940947]
[1737180953362,41.53940947,234.18,234.06,41.53940947]
[1737180953568,41.53940947,234.16,234.06,41.53940947]
[1737180953871,41.53940947,234.14,234.02,41.53940947]
[1737180954273,41.53940947,234.2,234.11,20.0]
[1737180954455,2.887,234.23,234.11,20.0]
[1737180954661,41.53940947,234.27,234.19,20.0]
[1737180954861,41.53940947,234.21,234.01,0.64057434]
[1737180955171,40.48242497,234.29,234.11,41.53940947]
[1737180955353,40.48242497,234.29,234.01,0.64057434]
[1737180955354,41.53940947,234.23,234.13,41.53940947]
[1737180955549,41.53940947,234.23,234.16,20.0]
[1737180955778,40.48242497,234.29,234.16,20.0]
[1737180955779,41.53940947,234.19,234.16,20.0]
[1737180955956,41.53940947,234.17,233.96,41.53940947]
[1737180956158,41.53940947,234.05,233.94,41.53940947]
[1737180956678,41.53940947,234.05,233.86,6.17311319]
[1737180956679,41.53940947,234.05,233.95,41.53940947]
[1737180957173,41.53940947,234.08,233.97,41.53940947]
[1737180957383,41.53940947,234.06,233.95,41.53940947]
[1737180957678,41.53940947,234.02,233.91,41.53940947]
[1737180957873,41.53940947,234.0,233.88,41.53940947]
[1737180958173,11.0356,234.11,233.78,0.64123216]
[1737180958174,41.53940947,234.02,233.9,41.53940947]
[1737180958770,41.53940947,233.96,233.73,0.64122359]
[1737180958973,41.53940947,233.98,233.85,41.53940947]
[1737180959271,41.53940947,233.92,233.74,1.42360782]
[1737180959462,41.53940947,233.88,233.78,41.53940947]
[1737180959773,0.64620938,233.99,233.64,6.173113]
[1737180960076,11.0356,234.11,233.64,6.173113]
[1737180960077,4.272,234.08,233.65,0.64130542]
[1737180960277,4.2724,234.06,233.65,0.64130542]
[1737180960573,0.64620938,234.05,233.66,0.063]
[1737180960770,41.53940947,233.93,233.82,41.53940947]
[1737180960965,41.53940947,233.97,233.86,41.53940947]
[1737180961174,41.53940947,233.99,233.88,41.53940947]
[1737180961366,41.53940947,234.01,233.9,41.53940947]
[1737180961669,41.53940947,234.01,233.76,41.53940947]
[1737180961670,41.53940947,233.91,233.64,21.84826895]
[1737180961870,41.53940947,233.87,233.76,41.53940947]
[1737180962050,41.53940947,233.79,233.68,41.53940947]
[1737180962257,0.64620938,233.78,233.68,41.53940947]
[1737180962750,41.53940947,233.74,233.66,0.063]
[1737180962953,41.53940947,233.76,233.66,0.063]
[1737180963177,41.53940947,233.76,233.66,41.60240947]
[1737180963385,0.64620938,233.84,233.66,41.60240947]
[1737180963386,41.53940947,233.78,233.66,41.60240947]
[1737180963586,0.64620938,233.77,233.66,41.60240947]
[1737180963759,41.53940947,233.71,233.66,0.063]
[1737180963957,41.53940947,233.75,233.66,0.063]
[1737180964164,0.64620938,233.74,233.66,0.063]
[1737180964366,41.53940947,233.73,233.66,0.063]
[1737180964578,0.64620938,233.72,233.66,0.063]
[1737180964975,41.53940947,233.79,233.68,41.53940947]
[1737180965177,11.0356,233.87,233.66,0.063]
[1737180965178,41.53940947,233.74,233.66,0.063]
[1737180965475,41.53940947,233.76,233.66,41.60240947]
[1737180965691,0.64620938,233.86,233.66,0.063]
[1737180965974,0.64620938,233.86,233.82,41.53940947]
[1737180966185,41.53940947,233.97,233.87,20.0]
[1737180966364,41.53940947,233.95,233.84,41.53940947]
[1737180966562,0.64620938,233.94,233.84,41.53940947]
[1737180966764,0.64620938,233.94,233.87,20.0]
[1737180966956,41.53940947,233.97,233.89,20.0]
[1737180967161,11.8002,234.0,233.93,20.0]
[1737180967361,41.53940947,233.98,233.86,41.53940947]
[1737180967669,41.53940947,233.96,233.86,41.53940947]
[1737180967863,53.33960947,234.0,233.93,20.0]
[1737180968069,41.53940947,233.94,233.66,46.183]
[1737180968278,0.64620938,233.93,233.67,0.64146251]
[1737180968485,9.44640938,234.0,233.67,0.64146251]
[1737180968672,9.44640938,234.0,233.74,20.0]
[1737180968867,9.44640938,234.0,233.74,20.64134411]
[1737180969068,41.53940947,233.99,233.88,41.53940947]
[1737180969268,41.53940947,233.96,233.85,41.53940947]
[1737180969466,41.53940947,233.92,233.81,41.53940947]
[1737180969983,55.25931885,234.0,233.74,41.53940947]
[1737180969984,41.53940947,233.85,233.74,41.53940947]
[1737180970291,12.88,233.99,233.73,0.063]
[1737180970292,41.53940947,233.87,233.75,41.53940947]
[1737180970584,41.53940947,233.89,233.79,41.53940947]
[1737180970761,9.44640938,234.0,233.82,61.53940947]
[1737180970962,3.537,234.03,233.86,41.53940947]
[1737180971167,45.07640947,234.03,233.95,20.0]
[1737180971376,41.53940947,234.02,233.95,20.0]
[1737180971968,41.53940947,234.0,233.9,41.53940947]
[1737180972167,41.53940947,233.98,233.88,41.53940947]
[1737180972373,41.53940947,234.0,233.93,20.0]
[1737180972677,41.53940947,234.01,233.93,20.0]
[1737180972876,41.53940947,233.97,233.88,41.53940947]
[1737180973383,41.53940947,233.99,233.9,41.53940947]
[1737180973782,41.53940947,233.99,233.88,41.53940947]
[1737180973993,41.53940947,234.01,233.93,20.0]
[1737180974187,41.53940947,233.99,233.89,41.53940947]
[1737180974394,45.07640947,234.03,233.93,41.53940947]
[1737180974595,41.53940947,234.04,233.93,41.53940947]
[1737180974885,41.53940947,234.0,233.91,41.53940947]
[1737180975076,41.53940947,234.04,233.96,20.0]
[1737180975779,41.53940947,233.99,233.89,41.53940947]
[1737180975983,41.53940947,234.01,233.91,41.53940947]
[1737180976586,41.53940947,233.97,233.87,2.2592096]
[1737180976888,41.53940947,233.92,233.82,41.53940947]
[1737180977270,41.53940947,233.94,233.84,41.53940947]
[1737180977471,41.53940947,233.96,233.86,41.53940947]
[1737180977668,41.53940947,234.0,233.77,12.88]
[1737180977992,41.53940947,234.04,233.95,41.53940947]
[1737180978183,41.53940947,234.0,233.91,41.53940947]
[1737180978371,41.53940947,234.0,233.89,41.53940947]
[1737180978572,41.53940947,234.0,233.94,20.0]
[1737180978997,41.53940947,234.02,233.94,20.0]
[1737180979171,41.53940947,234.04,233.96,20.0]
[1737180979379,41.53940947,234.04,233.98,20.0]
[1737180980285,41.53940947,234.1,234.01,41.53940947]
[1737180980474,41.53940947,234.18,234.12,20.0]
[1737180980680,41.56940947,234.16,234.07,41.53940947]
[1737180980991,0.03,234.16,234.03,20.0]
[1737180981370,0.03,234.16,234.04,0.64064802]
[1737180982088,40.48242497,234.29,234.15,41.53940947]
[1737180982289,40.48242497,234.29,234.25,41.53940947]
[1737180982490,40.48242497,234.29,234.28,20.0]
[1737180982680,40.48242497,234.29,234.28,61.53940947]
[1737180982875,37.23724497,234.29,234.28,61.53940947]
[1737180983394,24.07404977,234.29,234.28,61.53940947]
[1737180984283,24.07404977,234.29,234.26,41.53940947]
[1737180984478,24.07404977,234.29,234.28,41.53940947]
[1737180985493,24.07404977,234.29,234.26,41.53940947]
[1737180985696,24.07404977,234.29,234.28,41.53940947]
[1737180985882,65.61345924,234.29,234.06,0.64017221]
[1737180986201,65.61345924,234.29,234.23,41.53940947]
[1737180986202,24.07404977,234.29,234.23,41.53940947]
[1737180986501,24.07404977,234.29,234.27,41.53940947]
[1737180987580,24.07404977,234.29,234.23,41.53940947]
[1737180987975,24.07404977,234.29,234.25,41.53940947]
[1737180988186,24.07404977,234.29,234.28,20.0]
[1737180988490,128.19868,234.45,234.28,61.53940947]
[1737180988798,169.73808947,234.45,234.36,41.53940947]
[1737180988993,128.19868,234.45,234.39,20.0]
[1737180989187,41.53940947,234.43,234.39,20.0]
[1737180989390,128.19868,234.45,234.39,20.0]
[1737180990399,128.19868,234.45,234.41,20.0]
[1737180990704,128.19868,234.45,234.43,20.0]
[1737180991091,41.53940947,234.44,234.31,41.53940947]
[1737180991297,41.53940947,234.44,234.24,41.53940947]
[1737180991298,41.53940947,234.35,234.23,41.53940947]
[1737180991490,41.53940947,234.35,234.25,41.53940947]
[1737180991708,41.53940947,234.36,234.16,0.64026758]
[1737180992004,3.7108,234.41,234.24,41.53940947]
[1737180992194,41.53940947,234.34,234.24,41.53940947]
[1737180992507,41.53940947,234.3,234.2,41.53940947]
[1737180992703,41.53940947,234.34,234.24,41.53940947]
[1737180993003,41.53940947,234.36,234.26,41.53940947]
[1737180993181,41.53940947,234.36,234.29,20.0]
[1737180993384,41.53940947,234.34,234.24,41.53940947]
[1737180993586,41.53940947,234.36,234.26,41.53940947]
[1737180993900,41.53940947,234.38,234.28,41.53940947]
[1737180994304,41.53940947,234.4,234.33,20.0]
[1737180994484,41.53940947,234.36,234.26,41.53940947]
[1737180994684,0.03,234.41,234.35,41.53940947]
[1737180994911,0.03,234.41,234.37,41.53940947]
[1737180995105,103.22868,234.45,234.39,41.53940947]
[1737180995299,103.22868,234.45,234.44,41.53940947]
[1737180995498,103.22868,234.45,234.34,6.17311319]
[1737180995692,103.22868,234.45,234.4,41.53940947]
[1737180996287,103.22868,234.45,234.37,41.53940947]
[1737180997015,103.22868,234.45,234.35,41.53940947]
[1737180997016,144.76808947,234.45,234.35,41.53940947]
[1737180997222,41.53940947,234.43,234.33,41.53940947]
[1737180997523,41.53940947,234.37,234.28,41.53940947]
[1737180997698,41.53940947,234.35,234.15,0.64005652]
[1737180997893,41.53940947,234.35,234.25,41.53940947]
[1737180998093,107.49398,234.45,234.16,6.17311319]
[1737180998309,20.0,234.42,234.06,17.062121]
[1737180998509,20.0,234.37,234.06,17.062121]
[1737180998913,12.88,234.36,233.97,1.74308528]
[1737180999120,15.9794,234.4,234.0,6.17311319]
[1737180999410,41.53940947,234.15,234.06,41.53940947]
[1737180999988,8.96,234.32,234.13,41.53940947]
[1737181000210,41.53940947,234.21,234.07,6.17311319]
[1737181000404,41.53940947,234.14,234.04,41.53940947]
[1737181000912,41.53940947,234.24,233.98,13.52068513]
[1737181001211,41.53940947,234.24,233.88,6.173113]
[1737181001212,41.53940947,234.16,234.06,41.53940947]
[1737181001417,8.94,234.32,234.1,41.53940947]
[1737181001418,41.53940947,234.2,234.1,41.53940947]
[1737181001619,8.94,234.32,234.14,41.53940947]
[1737181001909,41.53940947,234.31,234.23,20.0]
[1737181002211,41.53940947,234.27,234.23,20.0]
[1737181002391,41.53940947,234.3,234.23,20.0]
[1737181002593,83.07881894,234.24,233.84,12.0265]
[1737181002804,83.07881894,234.24,233.94,1.75209804]
[1737181002805,41.53940947,234.15,233.94,1.75209804]
[1737181003006,41.53940947,234.09,233.99,41.53940947]
[1737181003326,41.53940947,234.11,234.01,41.53940947]
[1737181003517,41.53940947,234.09,233.99,41.53940947]
[1737181003715,41.53940947,234.11,234.01,41.53940947]
[1737181004015,15.9794,234.18,234.06,41.53940947]
[1737181004321,57.51880947,234.18,234.08,41.53940947]
[1737181004509,41.53940947,234.16,234.06,41.53940947]
[1737181004819,41.53940947,234.14,234.04,41.53940947]
[1737181005015,41.53940947,234.16,234.06,41.53940947]
[1737181005214,15.9794,234.18,234.1,41.53940947]
[1737181005409,3.7108,234.18,234.12,41.53940947]
[1737181005609,3.7108,234.18,234.0,42.18017232]
[1737181005610,3.7108,234.18,234.17,20.0]
[1737181005915,41.53940947,234.24,234.17,20.0]
[1737181006217,41.53940947,234.26,234.19,20.0]
[1737181007117,41.53940947,234.28,234.21,20.0]
[1737181007315,41.53940947,234.24,234.14,41.53940947]
[1737181007517,41.53940947,234.18,234.08,41.53940947]
[1737181007832,41.53940947,234.16,234.06,41.53940947]
[1737181008119,41.53940947,234.09,233.99,41.53940947]
[1737181008330,7.9787,234.31,234.0,0.64098763]
[1737181008499,41.53940947,234.3,234.2,41.53940947]
[1737181008709,3.7108,234.31,234.21,41.53940947]
[1737181009016,41.53940947,234.3,234.21,41.53940947]
[1737181009225,41.53940947,234.3,234.19,41.53940947]
[1737181009405,41.53940947,234.3,234.22,20.0]
[1737181009608,41.53940947,234.3,234.24,20.0]
[1737181009812,41.53940947,234.3,234.19,41.53940947]
[1737181010019,41.53940947,234.26,234.15,41.53940947]
[1737181010413,41.53940947,234.26,234.18,20.0]
[1737181010614,41.53940947,234.24,234.13,41.53940947]
[1737181011030,41.53940947,234.26,234.18,20.0]
[1737181011324,41.53940947,234.23,234.15,41.53940947]
[1737181011538,41.53940947,234.25,234.18,20.0]
[1737181011833,41.53940947,234.19,234.09,41.53940947]
[1737181012132,41.53940947,234.21,234.11,41.53940947]
[1737181012501,41.53940947,234.23,234.16,20.0]
[1737181012839,41.53940947,234.24,234.16,20.0]
[1737181013117,41.53940947,234.24,234.18,20.0]
[1737181013502,41.53940947,234.24,234.13,41.53940947]
[1737181013707,41.53940947,234.24,234.15,41.53940947]
[1737181014209,41.53940947,234.24,234.13,41.53940947]
[1737181014651,41.53940947,234.24,234.16,20.0]
[1737181015026,41.53940947,234.27,234.17,41.53940947]
[1737181015226,41.53940947,234.25,234.15,41.53940947]
[1737181015643,41.53940947,234.27,234.17,41.53940947]
[1737181016142,41.53940947,234.25,234.15,41.53940947]
[1737181016551,41.53940947,234.27,234.2,20.0]
[1737181017351,45.25020947,234.31,234.22,20.0]
[1737181017564,41.53940947,234.37,234.3,20.0]
[1737181017739,41.53940947,234.33,234.23,41.53940947]
[1737181018442,4.296,234.41,234.21,41.53940947]
[1737181018443,41.53940947,234.31,234.21,41.53940947]
[1737181019253,41.53940947,234.24,234.14,41.53940947]
[1737181019556,41.53940947,234.29,234.19,41.53940947]
[1737181019762,41.53940947,234.27,234.17,41.53940947]
[1737181020064,41.53940947,234.27,234.21,0.063]
[1737181020363,45.80760947,234.29,234.21,0.063]
[1737181020668,41.53940947,234.28,234.21,0.063]
[1737181021168,41.53940947,234.26,234.21,0.063]
[1737181021546,41.53940947,234.36,234.21,0.063]
[1737181021547,41.53940947,234.28,234.21,0.063]
[1737181021779,0.03,234.41,234.27,41.53940947]
[1737181022067,103.22868,234.45,234.4,41.53940947]
[1737181022236,32.16655106,234.45,234.44,41.53940947]
[1737181022571,24.76001402,234.45,234.44,41.53940947]
[1737181022931,29.48306595,234.64,234.44,95.95881894]
[1737181023131,29.48306595,234.64,234.45,14.33493199]
[1737181023455,29.48306595,234.64,234.63,41.53940947]
[1737181023627,78.19868,234.8,234.63,12.88]
[1737181023830,78.19868,234.8,234.64,11.43474263]
[1737181024028,78.19868,234.8,234.64,12.21405196]
[1737181024436,45.49600068,234.9,234.8,7.40223472]
[1737181024638,20.51899232,234.9,234.86,54.41940947]
[1737181024840,23.39254379,234.98,234.89,32.88]
[1737181025053,78.19868,235.14,234.97,32.88]
[1737181025240,78.19868,235.14,235.13,41.53940947]
[1737181025434,78.19868,235.14,235.05,5.54111819]
[1737181025631,78.19868,235.14,235.13,41.53940947]
[1737181026446,78.19868,235.14,234.99,0.63767563]
[1737181026646,78.19868,235.14,234.84,0.63794029]
[1737181027235,78.19868,235.14,234.85,0.77861248]
[1737181027461,41.53940947,235.08,234.97,41.53940947]
[1737181027759,41.53940947,235.09,234.98,41.53940947]
[1737181027958,41.53940947,235.11,235.03,20.0]
[1737181028155,41.53940947,235.13,235.05,20.0]
[1737181028335,78.19868,235.14,235.07,20.0]
[1737181028536,78.19868,235.14,235.11,20.0]
[1737181028760,78.19868,235.14,235.02,0.63802771]
[1737181028761,41.53940947,235.13,235.02,0.63802771]
[1737181028965,41.53940947,235.09,234.98,41.53940947]
[1737181029137,41.53940947,235.11,234.9,0.63792952]
[1737181029339,41.53940947,235.13,235.05,20.0]
[1737181029573,76.33258,235.14,235.12,41.53940947]
[1737181029794,0.5714003,235.14,235.12,54.41940947]
[1737181029952,72.57073109,235.32,235.12,42.95465879]
[1737181030154,31.03132162,235.32,235.24,41.53940947]
[1737181030353,72.57073109,235.32,235.2,41.53940947]
[1737181030554,72.57073109,235.32,235.22,41.53940947]
[1737181030773,72.57073109,235.32,235.23,0.63737478]
[1737181031173,41.53940947,235.3,235.21,0.63741667]
[1737181031361,41.56424339,235.26,235.16,41.53940947]
[1737181031566,0.02483392,235.26,235.2,41.53940947]
[1737181031761,0.02483392,235.26,235.21,0.6373965]
[1737181032077,0.02483392,235.26,235.18,42.17694186]
[1737181032273,41.53940947,235.24,235.21,20.0]
[1737181032466,41.53940947,235.22,235.08,47.01539825]
[1737181032655,0.02483392,235.26,235.09,0.63771464]
[1737181032656,41.53940947,235.1,235.09,0.63771464]
[1737181032857,41.53940947,235.1,235.0,41.53940947]
[1737181033061,0.02483392,235.26,235.01,0.63800094]
[1737181033062,41.53940947,235.16,235.01,0.63800094]
[1737181033266,0.02483392,235.26,235.01,0.63800094]
[1737181033573,0.02483392,235.26,234.96,6.09795152]
[1737181033780,0.02483392,235.26,235.02,6.09795152]
[1737181033960,0.02483392,235.26,235.05,20.0]
[1737181033961,0.03,235.14,235.05,20.0]
[1737181034161,0.03,235.14,235.13,41.53940947]
[1737181034373,41.53940947,235.25,235.13,41.53940947]
[1737181034563,0.02483392,235.26,235.15,41.53940947]
[1737181034765,41.56424339,235.26,235.16,0.63749176]
[1737181034968,41.56424339,235.26,235.15,41.53940947]
[1737181034969,41.53940947,235.24,235.18,20.0]
[1737181035168,41.53940947,235.24,235.15,41.53940947]
[1737181035462,0.02483392,235.26,235.22,20.0]
[1737181035861,0.02483392,235.26,235.24,20.0]
[1737181036268,41.53940947,235.25,235.24,20.0]
[1737181036474,41.53940947,235.25,235.11,41.53940947]
[1737181036681,41.53940947,235.14,235.05,41.53940947]
[1737181036979,41.53940947,235.16,235.05,54.41940947]
[1737181037170,41.53940947,235.06,234.75,15.83751945]
[1737181037479,41.53940947,235.06,234.44,137.363]
[1737181037480,41.53940947,234.95,234.81,41.53940947]
[1737181037659,41.53940947,234.9,234.82,0.63843403]
[1737181037854,41.53940947,234.88,234.77,42.17791428]
[1737181038056,41.53940947,234.92,234.81,41.53940947]
[1737181038276,41.53940947,235.08,234.85,41.53940947]
[1737181038277,41.53940947,234.94,234.85,41.53940947]
[1737181038470,41.53940947,234.89,234.82,0.6385361]
[1737181038670,41.53940947,234.93,234.82,42.17794557]
[1737181038867,41.53940947,234.95,234.84,41.53940947]
[1737181039067,41.53940947,234.99,234.88,41.53940947]
[1737181039270,41.53940947,235.01,234.9,41.53940947]
[1737181039473,41.53940947,235.01,234.93,20.0]
[1737181039678,41.53940947,234.99,234.93,20.0]
[1737181039979,41.53940947,235.01,234.93,20.0]
[1737181040179,41.53940947,234.97,234.86,42.17764004]
[1737181040477,41.53940947,235.0,234.9,41.53940947]
[1737181040670,41.53940947,235.08,235.01,20.0]
[1737181040879,41.53940947,235.1,235.03,20.0]
[1737181041387,41.53940947,235.1,235.0,41.53940947]
[1737181041573,41.53940947,235.1,235.03,20.0]
[1737181041774,41.53940947,235.14,235.07,20.0]
[1737181041980,41.53940947,235.14,235.01,1.91801725]
[1737181041981,41.53940947,235.08,235.01,1.28]
[1737181042285,41.53940947,235.03,235.01,1.28]
[1737181042666,41.53940947,235.12,235.05,20.0]
[1737181042969,41.53940947,235.14,235.07,20.0]
[1737181043163,41.53940947,235.09,235.07,20.0]
[1737181043565,41.53940947,235.11,235.03,20.0]
[1737181043782,41.53940947,235.13,235.05,20.0]
[1737181043970,41.53940947,235.11,235.05,20.0]
[1737181044471,41.53940947,235.11,235.04,1.28]
[1737181044670,41.53940947,235.09,235.04,1.28]
[1737181044871,41.53940947,235.11,235.04,1.28]
[1737181045069,41.53940947,235.11,235.05,20.0]
[1737181045267,41.53940947,235.11,235.06,1.28]
[1737181045893,41.53940947,235.11,235.08,20.0]
[1737181046263,41.53940947,235.09,235.08,21.28]
[1737181046471,41.53940947,235.09,234.94,41.53940947]
[1737181046787,41.53940947,235.05,234.96,41.53940947]
[1737181046962,41.53940947,235.05,234.94,41.53940947]
[1737181047167,41.53940947,235.03,234.96,1.28]
[1737181047868,34.76232162,235.32,235.05,20.0]
[1737181048171,41.53940947,235.25,235.16,41.53940947]
[1737181048381,41.53940947,235.27,235.18,41.53940947]
[1737181048586,41.53940947,235.25,235.16,41.53940947]
[1737181048767,34.76232162,235.32,235.17,0.63760563]
[1737181048968,41.53940947,235.28,235.18,41.53940947]
[1737181049298,41.53940947,235.3,235.22,41.53940947]
[1737181049505,41.53940947,235.3,235.23,20.0]
[1737181050103,41.53940947,235.27,235.18,41.53940947]
[1737181050474,41.53940947,235.2,235.06,41.53940947]
[1737181050698,41.53940947,235.1,235.0,41.53940947]
[1737181050886,41.53940947,235.08,234.97,41.53940947]
[1737181051077,41.53940947,235.08,234.87,0.63809461]
[1737181051282,41.53940947,235.08,234.96,41.53940947]
[1737181051486,41.53940947,235.08,234.98,41.53940947]
[1737181051681,34.76232162,235.32,235.08,12.88]
[1737181051990,34.76232162,235.32,235.07,83.07881894]
[1737181051991,31.03132162,235.32,235.21,41.53940947]
[1737181052173,41.53940947,235.31,235.22,41.53940947]
[1737181052374,41.53940947,235.31,235.23,0.63749328]
[1737181052590,1.0,235.35,235.26,12.88]
[1737181052794,1.03,235.5,235.32,12.88]
[1737181053097,1.40612817,235.41,235.4,41.53940947]
[1737181053387,42.94553764,235.41,235.33,0.6369657]
[1737181053598,1.40612817,235.41,235.34,41.53940947]
[1737181054095,42.94553764,235.41,235.37,20.0]
[1737181054268,41.53940947,235.38,235.22,0.63716482]
[1737181054467,41.53940947,235.28,235.18,41.53940947]
[1737181054673,41.53940947,235.28,235.09,0.63719242]
[1737181054674,4.4112,235.38,235.09,13.51746637]
[1737181054981,41.53940947,235.3,235.09,0.63746637]
[1737181055291,41.53940947,235.28,235.19,41.53940947]
[1737181055503,41.53940947,235.28,235.17,41.53940947]
[1737181055700,41.53940947,235.2,235.11,42.17690023]
[1737181055923,41.53940947,235.18,235.07,41.53940947]
[1737181056078,41.53940947,235.25,235.15,41.53940947]
[1737181056271,41.53940947,235.22,235.12,41.53940947]
[1737181057088,41.53940947,235.22,235.1,41.53940947]
[1737181057289,41.53940947,235.22,235.12,41.53940947]
[1737181057491,41.53940947,235.14,235.04,41.53940947]
[1737181057818,58.75290947,235.32,234.76,21.75300991]